bitfinex/quotes_BTCUSD_20251010
["timestamp","ask_amount","ask_price","bid_price","bid_amount"]
[1760078602147,0.40325945,121850.0,121840.0,0.37908539]
[1760078602358,0.40325945,121850.0,121840.0,1.03937714]
[1760078604052,0.40325945,121850.0,121840.0,0.71908539]
[1760078604263,0.40325945,121850.0,121840.0,1.03937714]
[1760078606316,0.17129945,121850.0,121840.0,0.21493569]
[1760078606539,0.40325945,121850.0,121840.0,0.19027648]
[1760078606974,0.17129945,121850.0,121840.0,0.19027648]
[1760078607192,0.40325945,121850.0,121840.0,0.19027648]
[1760078608686,0.17129945,121850.0,121840.0,0.19027648]
[1760078608908,0.40325945,121850.0,121840.0,0.19027648]
[1760078609124,0.17129945,121850.0,121840.0,0.19027648]
[1760078609340,0.40325945,121850.0,121840.0,0.19027648]
[1760078611656,0.17129945,121850.0,121840.0,0.19027648]
[1760078612106,0.40325945,121850.0,121840.0,0.19027648]
[1760078612653,0.17129945,121850.0,121840.0,0.19027648]
[1760078612864,0.40325945,121850.0,121840.0,0.19027648]
[1760078613082,0.25669945,121850.0,121840.0,0.99500968]
[1760078613304,0.48865945,121850.0,121840.0,0.83085998]
[1760078613527,0.25669945,121850.0,121840.0,0.51056823]
[1760078613735,0.48865945,121850.0,121840.0,0.19027648]
[1760078613956,0.48865945,121850.0,121840.0,0.51056823]
[1760078614141,0.48865945,121850.0,121840.0,0.19027648]
[1760078617431,0.5769912,121850.0,121840.0,0.19027648]
[1760078617650,0.8089512,121850.0,121840.0,0.19027648]
[1760078618079,0.5769912,121850.0,121840.0,0.19027648]
[1760078618300,0.8089512,121850.0,121840.0,0.19027648]
[1760078621807,0.48865945,121850.0,121840.0,0.19027648]
[1760078622019,0.8089512,121850.0,121840.0,0.19027648]
[1760078622722,0.48865945,121850.0,121840.0,0.19027648]
[1760078622961,0.5769912,121850.0,121840.0,0.19027648]
[1760078623185,0.8089512,121850.0,121840.0,0.19027648]
[1760078625767,0.17129945,121850.0,121840.0,0.19027648]
[1760078625973,0.8089512,121850.0,121840.0,0.19027648]
[1760078629908,0.48865945,121850.0,121840.0,0.19027648]
[1760078630115,0.8089512,121850.0,121840.0,0.19027648]
[1760078630914,0.5769912,121850.0,121840.0,0.19027648]
[1760078631157,0.8089512,121850.0,121840.0,0.19027648]
[1760078635115,0.48865945,121850.0,121840.0,0.19027648]
[1760078635319,0.8089512,121850.0,121840.0,0.19027648]
[1760078635755,0.48865945,121850.0,121840.0,0.19027648]
[1760078636163,0.8089512,121850.0,121840.0,0.19027648]
[1760078642374,0.5830312,121850.0,121840.0,0.10715442]
[1760078642589,0.8149912,121850.0,121840.0,0.05715189]
[1760078643016,0.90332295,121850.0,121840.0,0.07368189]
[1760078643240,1.23508406,121850.0,121840.0,0.02699999]
[1760078643468,1.59048371,121850.0,121840.0,1e-08]
[1760078643684,0.16417665,121820.0,121810.0,0.06295116]
[1760078643899,0.92652977,121820.0,121810.0,0.02636899]
[1760078644325,0.68687041,121820.0,121810.0,0.02636899]
[1760078644542,0.91883041,121820.0,121810.0,0.02636899]
[1760078644759,0.25938665,121820.0,121810.0,0.04282899]
[1760078644974,0.91883041,121820.0,121810.0,0.02636899]
[1760078645189,0.91883041,121820.0,121810.0,0.05652089]
[1760078645763,0.91883041,121820.0,121810.0,0.07298089]
[1760078645976,0.91883041,121820.0,121810.0,0.05652089]
[1760078646180,0.91883041,121820.0,121810.0,0.07298089]
[1760078646378,0.91883041,121820.0,121810.0,0.05652089]
[1760078646581,0.60147041,121820.0,121810.0,0.05652089]
[1760078646751,1.26051041,121820.0,121810.0,0.05652089]
[1760078653846,1.26428041,121820.0,121810.0,0.05652089]
[1760078654296,1.271985,121820.0,121810.0,0.05652089]
[1760078655339,1.611985,121820.0,121810.0,0.05652089]
[1760078655571,1.611985,121820.0,121810.0,0.0315209]
[1760078655572,1.39531153,121820.0,121810.0,0.0315209]
[1760078655784,1.62731153,121820.0,121810.0,0.0315209]
[1760078657039,1.28731153,121820.0,121810.0,0.0315209]
[1760078658420,1.287305,121820.0,121810.0,0.0315209]
[1760078663481,1.055305,121820.0,121810.0,0.0315209]
[1760078663697,1.287305,121820.0,121810.0,0.0315209]
[1760078664647,1.31197596,121820.0,121810.0,0.0315209]
[1760078665261,1.31198386,121820.0,121810.0,0.0315209]
[1760078667063,1.31198386,121820.0,121810.0,0.001369]
[1760078669325,1.32967062,121820.0,121810.0,0.001369]
[1760078670678,0.90218686,121820.0,121810.0,0.001369]
[1760078670896,1.32967062,121820.0,121810.0,0.001369]
[1760078671625,1.32969406,121820.0,121810.0,0.001369]
[1760078673087,1.3297038,121820.0,121810.0,0.001369]
[1760078673277,1.35182717,121820.0,121810.0,0.001369]
[1760078675241,1.32715621,121820.0,121810.0,0.001369]
[1760078677101,1.43515621,121820.0,121810.0,0.001369]
[1760078677313,1.76476129,121820.0,121810.0,0.001369]
[1760078677528,1.99676129,121820.0,121810.0,0.001369]
[1760078678455,1.76476129,121820.0,121810.0,0.001369]
[1760078678652,1.99676129,121820.0,121810.0,0.001369]
[1760078678863,1.76476129,121820.0,121810.0,0.001369]
[1760078679069,1.99676129,121820.0,121810.0,0.001369]
[1760078680143,1.96715621,121820.0,121810.0,0.001369]
[1760078680566,1.73515621,121820.0,121810.0,0.001369]
[1760078680800,1.96715621,121820.0,121810.0,0.001369]
[1760078681866,1.9594615,121820.0,121810.0,0.001369]
[1760078682090,1.9673172,121820.0,121810.0,0.001369]
[1760078682901,1.3080772,121820.0,121810.0,0.001369]
[1760078683127,1.7353172,121820.0,121810.0,0.001369]
[1760078683321,1.6673172,121820.0,121810.0,0.001369]
[1760078683563,1.6635472,121820.0,121810.0,0.001369]
[1760078683955,1.6673172,121820.0,121810.0,0.001369]
[1760078684941,1.0080772,121820.0,121810.0,0.001369]
[1760078685298,1.6673172,121820.0,121810.0,0.001369]
[1760078685499,1.0080772,121820.0,121810.0,0.001369]
[1760078685874,1.6673572,121820.0,121810.0,0.001369]
[1760078688487,1.4353572,121820.0,121810.0,0.001369]
[1760078688738,1.6673572,121820.0,121810.0,0.001369]
[1760078690396,0.98198007,121820.0,121810.0,0.028789]
[1760078690609,1.21398007,121820.0,121810.0,0.028789]
[1760078690814,1.64146383,121820.0,121810.0,0.001369]
[1760078691262,1.61843717,121820.0,121810.0,0.001369]
[1760078693244,1.39020717,121820.0,121810.0,0.001369]
[1760078693478,1.64530534,121820.0,121810.0,0.001369]
[1760078694365,1.41330534,121820.0,121810.0,0.001369]
[1760078694813,1.64530534,121820.0,121810.0,0.001369]
[1760078695786,1.19636482,121820.0,121810.0,0.017329]
[1760078696020,1.19636482,121820.0,121810.0,0.001369]
[1760078696021,1.62384858,121820.0,121810.0,0.001369]
[1760078696263,1.64158764,121820.0,121810.0,0.001369]
[1760078696478,1.62761858,121820.0,121810.0,0.001369]
[1760078697515,0.96833858,121820.0,121810.0,0.001369]
[1760078697713,0.96456858,121820.0,121810.0,0.001369]
[1760078697918,1.62384858,121820.0,121810.0,0.001369]
[1760078698405,1.39184858,121820.0,121810.0,0.028789]
[1760078698606,0.95852858,121820.0,121810.0,0.053719]
[1760078698819,0.53104482,121820.0,121810.0,0.0838709]
[1760078698995,1.19032482,121820.0,121810.0,0.0838709]
[1760078699642,0.53104482,121820.0,121810.0,0.10887089]
[1760078699832,1.19032482,121820.0,121810.0,0.10887089]
[1760078700508,0.18727482,121820.0,121810.0,0.10887089]
[1760078700717,0.82345665,121820.0,121810.0,0.10887089]
[1760078701372,0.59145665,121820.0,121810.0,0.10887089]
[1760078701591,0.08544,121820.0,121810.0,0.78366684]
[1760078701805,0.31744,121820.0,121810.0,0.35618308]
[1760078702435,0.24961665,121820.0,121810.0,0.35618308]
[1760078702642,0.24961665,121820.0,121810.0,0.78366684]
[1760078702851,0.24961665,121820.0,121810.0,0.61947671]
[1760078703063,0.48161665,121820.0,121810.0,0.61947671]
[1760078703492,0.24961665,121820.0,121810.0,0.61947671]
[1760078703690,0.48161665,121820.0,121810.0,0.61947671]
[1760078704103,0.24961665,121820.0,121810.0,0.61947671]
[1760078704280,0.48161665,121820.0,121810.0,0.61947671]
[1760078704960,0.48161665,121820.0,121810.0,0.19199295]
[1760078705189,0.24961665,121820.0,121810.0,0.61947671]
[1760078705423,0.48157665,121820.0,121810.0,0.61947671]
[1760078705651,0.48157665,121820.0,121810.0,0.51246072]
[1760078705877,0.24961665,121820.0,121810.0,0.51246072]
[1760078706107,0.48157665,121820.0,121810.0,0.51246072]
[1760078706622,0.24961665,121820.0,121810.0,0.51246072]
[1760078706853,0.48157665,121820.0,121810.0,0.51246072]
[1760078707088,0.24961665,121820.0,121810.0,0.51246072]
[1760078707323,0.16417665,121820.0,121810.0,0.67665085]
[1760078707547,0.48157665,121820.0,121810.0,0.51246072]
[1760078709842,0.17289026,121840.0,121820.0,0.19432855]
[1760078710057,0.51469026,121840.0,121830.0,0.40386966]
[1760078710294,0.83209026,121840.0,121830.0,0.42643966]
[1760078711948,0.83209026,121840.0,121830.0,0.50956172]
[1760078712185,0.60013026,121840.0,121830.0,0.50956172]
[1760078712632,0.83209026,121840.0,121830.0,0.50956172]
[1760078714067,0.83209026,121840.0,121830.0,0.18909395]
[1760078714292,0.60013026,121840.0,121830.0,0.50956172]
[1760078714545,0.83209026,121840.0,121830.0,0.50956172]
[1760078715910,0.83205026,121840.0,121830.0,0.50956172]
[1760078718796,0.40481026,121840.0,121830.0,0.50956172]
[1760078719027,0.49025026,121840.0,121830.0,0.50956172]
[1760078722398,0.40481026,121840.0,121830.0,0.50956172]
[1760078722637,0.49021026,121840.0,121830.0,0.50956172]
[1760078722898,0.25829026,121840.0,121830.0,0.18909395]
[1760078723157,0.49021026,121840.0,121830.0,0.50956172]
[1760078727974,0.25829026,121840.0,121830.0,0.50956172]
[1760078728213,0.25829026,121840.0,121830.0,0.67372489]
[1760078728439,0.26597019,121840.0,121830.0,0.75372169]
[1760078728665,0.26597019,121840.0,121830.0,0.67372489]
[1760078728906,0.26597019,121840.0,121830.0,0.50956172]
[1760078729332,0.49789019,121840.0,121830.0,0.50956172]
[1760078730525,0.49021026,121840.0,121830.0,0.50956172]
[1760078730738,0.49789335,121840.0,121830.0,0.50956172]
[1760078732741,0.26597335,121840.0,121830.0,0.50956172]
[1760078732986,0.49789335,121840.0,121830.0,0.50956172]
[1760078735034,0.49789335,121840.0,121830.0,0.18909395]
[1760078735259,0.49789335,121840.0,121830.0,0.50956172]
[1760078738706,0.49785335,121840.0,121830.0,0.50956172]
[1760078741665,0.49786857,121840.0,121830.0,0.50956172]
[1760078743426,0.49787032,121840.0,121830.0,0.50956172]
[1760078744150,0.18059032,121840.0,121830.0,0.50956172]
[1760078744385,0.49787032,121840.0,121830.0,0.50956172]
[1760078746081,0.41247032,121840.0,121830.0,0.50956172]
[1760078746287,0.49787032,121840.0,121830.0,0.50956172]
[1760078747674,0.26599032,121840.0,121830.0,0.50956172]
[1760078747877,0.49787032,121840.0,121830.0,0.50956172]
[1760078749287,0.49017026,121840.0,121830.0,0.50956172]
[1760078749909,0.25829026,121840.0,121830.0,0.50956172]
[1760078750099,0.49017026,121840.0,121830.0,0.67372489]
[1760078754485,0.0005118,121840.0,121830.0,0.36784117]
[1760078754686,0.0005118,121840.0,121830.0,0.67372489]
[1760078754687,0.0859118,121840.0,121830.0,0.67372489]
[1760078754904,0.3177918,121840.0,121830.0,0.67372489]
[1760078756406,0.31639014,121840.0,121830.0,0.67372489]
[1760078756666,0.00613971,121850.0,121840.0,0.21930159]
[1760078756939,0.23801971,121850.0,121840.0,0.99467919]
[1760078757226,0.22053971,121850.0,121840.0,0.99467919]
[1760078757466,0.22053971,121850.0,121840.0,0.35374365]
[1760078757695,0.00613971,121850.0,121840.0,0.99467919]
[1760078757926,0.23801971,121850.0,121840.0,1.01933628]
[1760078758138,0.23801971,121850.0,121840.0,1.09933308]
[1760078758577,0.00613971,121850.0,121840.0,1.09933308]
[1760078758810,0.23801971,121850.0,121840.0,1.09933308]
[1760078760116,0.23801971,121850.0,121840.0,1.01933628]
[1760078760544,0.00613971,121850.0,121840.0,1.01933628]
[1760078760818,0.00613971,121850.0,121840.0,0.21425104]
[1760078761061,0.38635594,121850.0,121840.0,0.67386852]
[1760078761279,0.38635594,121850.0,121840.0,0.53471881]
[1760078761509,0.38635594,121850.0,121840.0,0.69886851]
[1760078762203,0.38635594,121850.0,121840.0,0.37840074]
[1760078762204,0.40211594,121850.0,121840.0,0.37840074]
[1760078762409,0.40262767,121850.0,121840.0,0.69886851]
[1760078762951,0.00665144,121850.0,121840.0,0.69886851]
[1760078763183,0.23849144,121850.0,121840.0,1.09933308]
[1760078763900,0.00665144,121850.0,121840.0,1.09933308]
[1760078764109,0.23849144,121850.0,121840.0,1.01933628]
[1760078765096,0.00665144,121850.0,121840.0,1.01933628]
[1760078765306,0.23849144,121850.0,121840.0,1.01933628]
[1760078765721,0.00665144,121850.0,121840.0,1.01933628]
[1760078765943,0.23849144,121850.0,121840.0,1.01933628]
[1760078766645,0.40262767,121850.0,121840.0,1.01933628]
[1760078767644,0.40262767,121850.0,121840.0,0.80546258]
[1760078768713,0.23849144,121850.0,121840.0,0.80546258]
[1760078773690,0.17078767,121850.0,121840.0,0.37840074]
[1760078773909,0.40262767,121850.0,121840.0,0.80546258]
[1760078775462,0.17078767,121850.0,121840.0,0.21425104]
[1760078775680,0.17078767,121850.0,121840.0,0.18959395]
[1760078775905,0.40262767,121850.0,121840.0,0.16459396]
[1760078776143,0.40639767,121850.0,121840.0,0.18959395]
[1760078776568,0.40262767,121850.0,121840.0,0.18959395]
[1760078776993,0.17078767,121850.0,121840.0,0.18959395]
[1760078777238,0.32389144,121850.0,121840.0,0.79913753]
[1760078777474,0.09205144,121850.0,121840.0,0.79913753]
[1760078777690,0.32389144,121850.0,121840.0,0.79913753]
[1760078778990,0.48802767,121850.0,121840.0,0.79913753]
[1760078780044,0.48802767,121850.0,121840.0,0.78080549]
[1760078782538,0.48802767,121850.0,121840.0,0.61665579]
[1760078782874,0.48802767,121850.0,121840.0,0.78080549]
[1760078784008,0.1641497,121840.0,121830.0,0.02499999]
[1760078784278,0.59121154,121840.0,121830.0,0.05515189]
[1760078784546,0.59725154,121840.0,121830.0,0.05515189]
[1760078785013,0.1701897,121840.0,121830.0,0.05515189]
[1760078785225,0.4020697,121840.0,121830.0,0.07037189]
[1760078786132,0.84059111,121840.0,121830.0,0.05515189]
[1760078786365,0.83290154,121840.0,121830.0,0.05515189]
[1760078786627,0.85756655,121840.0,121830.0,0.05515189]
[1760078787048,0.86525283,121840.0,121830.0,0.05515189]
[1760078787263,0.85756655,121840.0,121830.0,0.05515189]
[1760078788175,0.85793255,121840.0,121830.0,0.05515189]
[1760078789282,0.85416255,121840.0,121830.0,0.05515189]
[1760078790007,0.19522071,121840.0,121830.0,0.08188189]
[1760078790218,0.84814071,121840.0,121830.0,0.10510189]
[1760078790651,0.18918071,121840.0,121830.0,0.10510189]
[1760078790861,0.50646071,121840.0,121830.0,0.10510189]
[1760078791067,0.18918071,121840.0,121830.0,0.10510189]
[1760078791270,0.50646071,121840.0,121830.0,0.10510189]
[1760078791484,0.18918071,121840.0,121830.0,0.18822395]
[1760078791719,0.4817957,121840.0,121830.0,0.66981405]
[1760078792142,0.2499157,121840.0,121830.0,0.61528579]
[1760078792356,0.1645157,121840.0,121830.0,0.61528579]
[1760078792559,0.2499157,121840.0,121830.0,0.61528579]
[1760078792771,0.4817957,121840.0,121830.0,0.61528579]
[1760078792983,0.4817957,121840.0,121830.0,0.18822395]
[1760078794261,0.4817957,121840.0,121830.0,0.61528579]
[1760078794465,0.1645157,121840.0,121830.0,0.69528259]
[1760078794680,0.4817957,121840.0,121830.0,0.69528259]
[1760078796032,0.000366,121840.0,121830.0,1.19944576]
[1760078796253,0.232566,121840.0,121830.0,1.19944576]
[1760078796482,0.000366,121840.0,121830.0,0.77238392]
[1760078796719,0.232566,121840.0,121830.0,1.19944576]
[1760078796944,0.232566,121840.0,121830.0,1.22410384]
[1760078797179,0.000366,121840.0,121830.0,1.22410384]
[1760078797399,0.232566,121840.0,121830.0,1.22410384]
[1760078797616,0.000366,121840.0,121830.0,1.65116568]
[1760078797833,0.010406,121840.0,121830.0,1.65116568]
[1760078798551,0.000366,121840.0,121830.0,1.65116568]
[1760078799256,0.000366,121840.0,121830.0,1.65216568]
[1760078799707,0.000366,121840.0,121830.0,1.65316568]
[1760078799930,0.000366,121840.0,121830.0,1.88532568]
[1760078800347,0.000366,121840.0,121830.0,1.65316568]
[1760078800557,0.000366,121840.0,121830.0,1.88532568]
[1760078800771,0.000366,121840.0,121830.0,1.65316568]
[1760078801203,0.000366,121840.0,121830.0,1.88532568]
[1760078803223,0.000366,121840.0,121830.0,1.65316568]
[1760078803431,0.000366,121840.0,121830.0,1.22610384]
[1760078803651,0.000366,121840.0,121830.0,1.65316568]
[1760078803868,0.000366,121840.0,121830.0,1.45822384]
[1760078805028,0.000366,121840.0,121830.0,1.88528568]
[1760078805258,0.000366,121840.0,121830.0,1.65316568]
[1760078805477,0.000366,121840.0,121830.0,1.22610384]
[1760078805742,0.000366,121840.0,121830.0,1.45818384]
[1760078807913,0.000366,121840.0,121830.0,0.6888933]
[1760078808130,0.232486,121840.0,121830.0,1.11595514]
[1760078808412,0.232486,121840.0,121830.0,1.14610704]
[1760078808638,0.232486,121840.0,121830.0,0.7190452]
[1760078808873,0.232486,121840.0,121830.0,1.14610704]
[1760078809531,0.232486,121840.0,121830.0,1.14510704]
[1760078809736,0.232486,121840.0,121830.0,1.14410704]
[1760078812365,0.30005309,121840.0,121830.0,0.07638807]
[1760078812585,0.4861657,121840.0,121830.0,0.07638807]
[1760078812806,0.4861657,121840.0,121830.0,0.10018807]
[1760078813021,0.4861657,121840.0,121830.0,0.07552999]
[1760078813496,0.4861657,121840.0,121830.0,0.10568189]
[1760078813755,0.2597257,121840.0,121830.0,0.08188189]
[1760078813986,0.4861657,121840.0,121830.0,0.10568189]
[1760078814461,0.2597257,121840.0,121830.0,0.06666189]
[1760078814683,0.4922057,121840.0,121830.0,0.05515189]
[1760078815865,0.2597257,121840.0,121830.0,0.05515189]
[1760078816073,0.2597257,121840.0,121830.0,0.07169189]
[1760078816292,0.4861257,121840.0,121830.0,0.10748189]
[1760078818188,0.4921657,121840.0,121830.0,0.08368189]
[1760078818650,0.4921657,121840.0,121830.0,0.05515189]
[1760078820896,0.4921657,121840.0,121830.0,0.07169189]
[1760078822119,0.4921657,121840.0,121830.0,0.05515189]
[1760078822568,1.26463754,121840.0,121830.0,0.0301519]
[1760078823252,0.8338457,121840.0,121830.0,0.0455619]
[1760078823705,0.6014057,121840.0,121830.0,0.0301519]
[1760078823920,0.8338057,121840.0,121830.0,0.0301519]
[1760078826015,0.1743257,121840.0,121830.0,0.0301519]
[1760078826229,0.6014057,121840.0,121830.0,0.0301519]
[1760078826453,0.8338057,121840.0,121830.0,0.0301519]
[1760078827110,0.6014057,121840.0,121830.0,0.0301519]
[1760078827354,0.8338057,121840.0,121830.0,0.0301519]
[1760078827794,1.15426434,121840.0,121830.0,0.0301519]
[1760078827983,0.1743257,121840.0,121830.0,0.0301519]
[1760078828231,0.72718434,121840.0,121830.0,0.0455619]
[1760078828462,1.15430434,121840.0,121830.0,0.0455619]
[1760078828727,0.8338057,121840.0,121830.0,0.0455619]
[1760078828922,1.1631863,121840.0,121830.0,0.0455619]
[1760078830050,0.9308263,121840.0,121830.0,0.0301519]
[1760078830269,1.25505494,121840.0,121830.0,0.0301519]
[1760078830483,1.48741494,121840.0,121830.0,0.0301519]
[1760078831131,0.9308263,121840.0,121830.0,0.0301519]
[1760078831340,0.8338057,121840.0,121830.0,0.0455619]
[1760078831544,1.15426434,121840.0,121830.0,0.0455619]
[1760078834288,1.16193551,121840.0,121830.0,0.0455619]
[1760078835121,1.16193571,121840.0,121830.0,0.0455619]
[1760078835731,0.18199707,121840.0,121830.0,0.0455619]
[1760078835934,0.84417571,121840.0,121830.0,0.06826797]
[1760078836148,0.17595707,121840.0,121830.0,0.09293797]
[1760078836384,0.17595707,121840.0,121830.0,0.41339661]
[1760078836598,0.2499157,121840.0,121830.0,0.51067259]
[1760078836815,0.4822357,121840.0,121830.0,0.51067259]
[1760078837246,0.48991373,121840.0,121830.0,0.51067259]
[1760078837672,0.25759373,121840.0,121830.0,0.51067259]
[1760078837872,0.49595373,121840.0,121830.0,0.16554395]
[1760078838096,0.25759373,121840.0,121830.0,0.19021395]
[1760078838300,0.48991373,121840.0,121830.0,0.19021395]
[1760078838746,0.25759373,121840.0,121830.0,0.19021395]
[1760078838958,0.48991373,121840.0,121830.0,0.19021395]
[1760078839709,0.25759373,121840.0,121830.0,0.19021395]
[1760078840104,0.48987373,121840.0,121830.0,0.19021395]
[1760078842136,0.49591373,121840.0,121830.0,0.16554395]
[1760078842351,0.51130161,121840.0,121830.0,0.16554395]
[1760078842797,0.50526161,121840.0,121830.0,0.19021395]
[1760078843002,0.27298161,121840.0,121830.0,0.19021395]
[1760078843428,0.50522161,121840.0,121830.0,0.19021395]
[1760078845734,0.27298161,121840.0,121830.0,0.19021395]
[1760078845946,0.50522161,121840.0,121830.0,0.19021395]
[1760078847890,0.27298161,121840.0,121830.0,0.19021395]
[1760078848141,0.83545025,121840.0,121830.0,0.05515189]
[1760078848373,0.92370889,121840.0,121830.0,0.0301519]
[1760078848599,1.15594889,121840.0,121830.0,0.0301519]
[1760078850290,1.49594889,121840.0,121830.0,0.0301519]
[1760078850513,0.50416317,121830.0,121820.0,0.03152075]
[1760078850737,0.84768772,121830.0,121820.0,0.03152075]
[1760078850978,0.53703908,121830.0,121820.0,0.03152075]
[1760078851220,0.85749772,121830.0,121820.0,0.03152075]
[1760078851452,1.17795636,121830.0,121820.0,0.03152075]
[1760078851669,0.85749772,121830.0,121820.0,0.03152075]
[1760078852763,1.08973772,121830.0,121820.0,0.03152075]
[1760078855221,1.08969772,121830.0,121820.0,0.03152075]
[1760078856274,1.41015636,121830.0,121820.0,0.03152075]
[1760078856506,1.08969772,121830.0,121820.0,0.03152075]
[1760078856716,0.85749772,121830.0,121820.0,0.03152075]
[1760078856831,1.08969772,121830.0,121820.0,0.03152075]
[1760078857622,1.08970594,121830.0,121820.0,0.03152075]
[1760078858691,0.85750594,121830.0,121820.0,0.03152075]
[1760078858904,0.7692473,121830.0,121820.0,0.03152075]
[1760078859042,1.08970594,121830.0,121820.0,0.03152075]
[1760078859706,1.08970446,121830.0,121820.0,0.03152075]
[1760078861700,0.76924582,121830.0,121820.0,0.03152075]
[1760078861904,1.51686446,121830.0,121820.0,0.03152075]
[1760078863301,1.28470446,121830.0,121820.0,0.03152075]
[1760078863510,1.51686446,121830.0,121820.0,0.03152075]
[1760078867109,1.28093446,121830.0,121820.0,0.03152075]
[1760078867307,1.49766658,121830.0,121820.0,0.03152075]
[1760078867730,0.94508794,121830.0,121820.0,0.37940939]
[1760078867922,1.17720794,121830.0,121820.0,0.40391939]
[1760078868374,1.16952317,121830.0,121820.0,0.37940939]
[1760078868589,1.16952317,121830.0,121820.0,0.05895075]
[1760078868836,1.16952317,121830.0,121820.0,0.03152075]
[1760078868837,1.25786181,121830.0,121820.0,0.03152075]
[1760078869034,1.48998181,121830.0,121820.0,0.03152075]
[1760078870206,1.26163181,121830.0,121820.0,0.03152075]
[1760078870424,1.18097761,121830.0,121820.0,0.03152075]
[1760078870645,1.50143625,121830.0,121820.0,0.03152075]
[1760078871452,1.26931625,121830.0,121820.0,0.03152075]
[1760078871671,1.17720761,121830.0,121820.0,0.03152075]
[1760078871899,1.50143625,121830.0,121820.0,0.03152075]
[1760078872120,1.15766625,121830.0,121820.0,0.03152075]
[1760078872350,0.60508761,121830.0,121820.0,0.04698075]
[1760078872573,1.15766625,121830.0,121820.0,0.05895075]
[1760078872792,0.92554625,121830.0,121820.0,0.05895075]
[1760078873027,1.15762625,121830.0,121820.0,0.04349075]
[1760078873255,1.15762625,121830.0,121820.0,0.03152075]
[1760078873914,0.92554625,121830.0,121820.0,0.03152075]
[1760078874136,1.16139625,121830.0,121820.0,0.03152075]
[1760078876362,1.17678053,121830.0,121820.0,0.03152075]
[1760078876772,0.84093761,121830.0,121820.0,0.03152075]
[1760078876987,1.16139625,121830.0,121820.0,0.03152075]
[1760078877390,1.17678509,121830.0,121820.0,0.03152075]
[1760078880349,0.94470509,121830.0,121820.0,0.03152075]
[1760078880560,1.17674509,121830.0,121820.0,0.00136885]
[1760078881595,0.62424645,121830.0,121820.0,0.00136885]
[1760078881802,1.17674509,121830.0,121820.0,0.00136885]
[1760078882212,0.94470509,121830.0,121820.0,0.00136885]
[1760078882378,1.17674509,121830.0,121820.0,0.00136885]
[1760078883898,1.16906065,121830.0,121820.0,0.00136885]
[1760078884114,0.50983092,121830.0,121820.0,0.00136885]
[1760078884330,1.16534084,121830.0,121820.0,0.00136885]
[1760078884538,1.16530084,121830.0,121820.0,0.00136885]
[1760078884746,0.93330084,121830.0,121820.0,0.00136885]
[1760078884965,0.50606084,121830.0,121820.0,0.00136885]
[1760078885190,1.14990181,121830.0,121820.0,0.00136885]
[1760078885410,1.17677032,121830.0,121820.0,0.00136885]
[1760078886113,0.51753032,121830.0,121820.0,0.00136885]
[1760078886392,0.61450168,121830.0,121820.0,0.08364075]
[1760078886610,0.84650168,121830.0,121820.0,0.08364075]
[1760078887520,0.85254168,121830.0,121820.0,0.08364075]
[1760078888186,0.62054168,121830.0,121820.0,0.05878075]
[1760078888412,0.85254168,121830.0,121820.0,0.03152075]
[1760078888850,1.17300032,121830.0,121820.0,0.03152075]
[1760078889595,0.85254168,121830.0,121820.0,0.03152075]
[1760078891396,0.8525403,121830.0,121820.0,0.03152075]
[1760078892823,0.6205403,121830.0,121820.0,0.03152075]
[1760078893040,0.8525403,121830.0,121820.0,0.03152075]
[1760078893514,0.9325371,121830.0,121820.0,0.03152075]
[1760078893724,0.8563103,121830.0,121820.0,0.03152075]
[1760078893963,1.05164917,121830.0,121820.0,0.03152075]
[1760078894170,1.28364917,121830.0,121820.0,0.03152075]
[1760078895214,0.8563103,121830.0,121820.0,0.03152075]
[1760078895426,1.28364917,121830.0,121820.0,0.03152075]
[1760078896139,1.39165018,121830.0,121820.0,0.00136885]
[1760078896370,1.39165018,121830.0,121820.0,1e-08]
[1760078896371,1.79433362,121830.0,121820.0,1e-08]
[1760078896582,2.04407282,121830.0,121820.0,1e-08]
[1760078896803,2.02451144,121830.0,121820.0,1e-08]
[1760078897050,1.81207282,121830.0,121820.0,1e-08]
[1760078897272,2.04407282,121830.0,121820.0,1e-08]
[1760078898568,1.81207282,121830.0,121820.0,1e-08]
[1760078898786,2.02451144,121830.0,121820.0,1e-08]
[1760078900583,2.62451144,121830.0,121820.0,1e-08]
[1760078901059,2.96631144,121830.0,121820.0,1e-08]
[1760078901508,2.73431144,121830.0,121820.0,1e-08]
[1760078901693,2.96631144,121830.0,121820.0,1e-08]
[1760078901943,2.96731144,121830.0,121820.0,1e-08]
[1760078902566,2.73531144,121830.0,121820.0,1e-08]
[1760078902776,2.96731144,121830.0,121820.0,1e-08]
[1760078903545,2.73531144,121830.0,121820.0,1e-08]
[1760078903756,2.96835144,121830.0,121820.0,1e-08]
[1760078905474,3.08791281,121830.0,121820.0,1e-08]
[1760078905698,4.86149025,121830.0,121820.0,1e-08]
[1760078905924,4.88616583,121830.0,121820.0,1e-08]
[1760078906844,4.78616584,121830.0,121820.0,1e-08]
[1760078907060,4.88616583,121830.0,121820.0,1e-08]
[1760078907284,4.89045747,121830.0,121820.0,1e-08]
[1760078908549,4.65841747,121830.0,121820.0,1e-08]
[1760078908760,5.31779634,121830.0,121820.0,1e-08]
[1760078909219,4.89045747,121830.0,121820.0,1e-08]
[1760078909434,4.65841747,121830.0,121820.0,1e-08]
[1760078909623,4.89045747,121830.0,121820.0,1e-08]
[1760078910310,4.65641747,121830.0,121820.0,1e-08]
[1760078910514,4.88953747,121830.0,121820.0,1e-08]
[1760078910728,4.89053747,121830.0,121820.0,1e-08]
[1760078912018,4.65849747,121830.0,121820.0,1e-08]
[1760078912242,5.31787634,121830.0,121820.0,1e-08]
[1760078912458,4.89053747,121830.0,121820.0,1e-08]
[1760078912670,5.09383634,121830.0,121820.0,1e-08]
[1760078912882,4.89853747,121830.0,121820.0,1e-08]
[1760078913108,4.66649747,121830.0,121820.0,1e-08]
[1760078913320,5.32587634,121830.0,121820.0,1e-08]
[1760078913548,4.66549747,121830.0,121820.0,1e-08]
[1760078913803,4.89953747,121830.0,121820.0,1e-08]
[1760078914053,4.89853747,121830.0,121820.0,1e-08]
[1760078914299,4.89953747,121830.0,121820.0,1e-08]
[1760078915266,4.92905816,121830.0,121820.0,1e-08]
[1760078915531,4.69701816,121830.0,121820.0,1e-08]
[1760078915721,4.92909816,121830.0,121820.0,1e-08]
[1760078916579,5.35643703,121830.0,121820.0,1e-08]
[1760078916816,5.10223159,121830.0,121820.0,1e-08]
[1760078917040,5.33431159,121830.0,121820.0,1e-08]
[1760078917465,5.37859263,121830.0,121820.0,1e-08]
[1760078918966,0.59156944,121780.0,121770.0,0.09634693]
[1760078919156,1.25473944,121780.0,121770.0,0.09634693]
[1760078919392,1.26454944,121780.0,121770.0,0.09634693]
[1760078920024,1.26454944,121780.0,121770.0,0.0301519]
[1760078920234,1.26459968,121780.0,121770.0,0.0301519]
[1760078920448,1.03251968,121780.0,121770.0,0.0301519]
[1760078920685,0.17786081,121780.0,121770.0,0.0301519]
[1760078920903,0.83349081,121780.0,121770.0,0.0301519]